Cogmind - Beta 15 @@@ ROGUE MODE // 2025.05.09 @ 13:24:48 Player: Darcyisverycute Result: Destroyed by S-10 Pest with Light Assault Rifle Performance ------------- Evolutions (0) 0 Regions Visited (3) 600 Robots Destroyed (22) 110 Value Destroyed (431) 431 Prototype IDs (14) 280 Alien Tech Used (0) 0 Bonus (0) 0 TOTAL SCORE: 1421 Bonus ------- None Cogmind --------- Core Integrity 0/250 Matter 270/300 Energy 250/250 System Corruption 0% Temperature Cool (0) Movement Rolling (115) Ox1 Location -10/Subcaves Parts ------- > --- POWER (1+1) ------ Ion Engine > --- PROPULSION (2+1) - Spiked Treads (+) Compact Wheel Compact Wheel > --- UTILITY (2+1) ---- Large Storage Unit Makeshift Light Armor Plating (+) Rainbow Chip > --- WEAPON (2+1) ----- Light Assault Rifle (+) Light Assault Rifle Barrage Gun > --- INVENTORY (15) --- Light Ion Engine Light Ion Engine Light Ion Engine Subdweller Power Source Subdweller Power Source Subdweller Monowheel Subdweller Monowheel Small Storage Unit Tractor Beam Light Assault Rifle Light Assault Rifle Mining Laser Mining Laser Mining Laser Multitool Peak State ------------ > --- POWER ------------ Ion Engine > --- PROPULSION ------- Spiked Treads Compact Wheel Compact Wheel > --- UTILITY ---------- Large Storage Unit Makeshift Light Armor Plating Rainbow Chip > --- WEAPON ----------- Light Assault Rifle Light Assault Rifle Barrage Gun > --- INVENTORY -------- Light Ion Engine Light Ion Engine Light Ion Engine Subdweller Power Source Subdweller Power Source Subdweller Monowheel Subdweller Monowheel Small Storage Unit Tractor Beam Light Assault Rifle Light Assault Rifle Mining Laser Mining Laser Mining Laser Multitool [Rating: 30] Favorites ----------- Power Light Ion Engine Engine Light Ion Engine Propulsion Light Treads Treads Light Treads Leg Aluminum Leg Wheel Compact Wheel Utility Large Storage Unit Device Improved Terrain Scanner Storage Large Storage Unit Processor Rainbow Chip Protection Light Armor Plating Weapon Assault Rifle Energy Gun Small Laser Ballistic Gun Assault Rifle Special Weapon Mining Laser Build | -11 -10 -10 -10 ------- Run | Yrd Mat Min Sub Slots Evolved . | . . . . Power . | . . . . Propulsion . | . . . . Utility . | . . . . Weapon . | . . . . Parts Attached 23 | 8 1 5 9 Power 2 | 1 . 1 . Engine 2 | 1 . 1 . Core . | . . . . Reactor . | . . . . Propulsion 6 | 2 . 2 2 Treads 3 | 2 . . 1 Leg 1 | . . 1 . Wheel 2 | . . 1 1 Hover . | . . . . Flight . | . . . . Utility 7 | 2 1 2 2 Device 2 | 1 . 1 . Storage 2 | 1 1 . . Processor 1 | . . . 1 Hackware . | . . . . Protection 2 | . . 1 1 Artifact . | . . . . Weapon 8 | 3 . . 5 Energy Gun 1 | 1 . . . Energy Cannon . | . . . . Ballistic Gun 5 | 2 . . 3 Ballistic Cannon . | . . . . Launcher . | . . . . Special Weapon 2 | . . . 2 Impact Weapon . | . . . . Slashing Weapon . | . . . . Piercing Weapon . | . . . . Special Melee Weapon . | . . . . Unidentified Prototypes . | . . . . Parts Lost 6 | . . 6 . Power 1 | . . 1 . Propulsion 3 | . . 3 . Utility 2 | . . 2 . Weapon . | . . . . Highest Loss Streak 2 | . . 2 . To Critical Strikes . | . . . . Average Backups 10 | 4 7 12 13 Power 2 | . 1 2 3 Propulsion 1 | 1 2 2 . Utility 1 | . 2 2 1 Weapon 4 | . 2 5 6 Tool/Special . | . . . . Unused Backups 11 | . . . 11 Power 5 | . . . 5 Propulsion 2 | . . . 2 Utility 1 | . . . 1 Weapon 2 | . . . 2 Tool/Special 1 | . . . 1 Average Slot Usage (%) 88 | . 100 95 78 Engine 11 | . 14 12 10 Treads 15 | . 28 23 2 Wheel 7 | . . . 16 Device 6 | . 14 5 3 Storage 12 | . 14 14 10 Processor 3 | . . . 6 Protection 3 | . . 6 2 Energy Gun 8 | . 14 14 2 Ballistic Gun 16 | . 14 14 19 Special Weapon 1 | . . . 3 Peak Build Rating 30 | 9 10 10 30 Average Rating 12 | 5 9 8 20 On Entrance 6 | . 9 10 7 Naked Turns . | . . . . Heaviest Build 34 | 12 27 29 34 Greatest Support 40 | 40 40 40 32 Greatest Overweight (x) 2 | . . 2 1 Average Overweight (x) . | . . . . Largest Inventory Capacity 15 | 8 15 15 15 Average Capacity 13 | 6 10 15 15 Most Carried 15 | 6 10 14 15 Average Carried 10 | 4 7 12 13 Final Capacity 15 | 8 15 15 15 Final Carried 15 | 6 10 12 15 Class Distribution -------------------- 78% | Mutant 11% | Tank 9% | Gunner Dominant Class ---------------- Mutant | -10/Materials Mutant | -10/Mines Mutant | -10/Subcaves Resources | -11 -10 -10 -10 ----------- Run | Yrd Mat Min Sub Matter Collected 628 | 291 1 179 157 Remotely 14 | . . 14 . Salvage Created 635 | 106 78 326 125 Parts 39 | 6 5 18 10 Haulers Intercepted . | . . . . Recyclers Shooed . | . . . . Parts Field Recycled . | . . . . Retrieved Matter . | . . . . Parts Self-Destructed 4 | . . . 4 Prevented . | . . . . Kills | -11 -10 -10 -10 ------- Run | Yrd Mat Min Sub Combat Hostiles Destroyed 19 | . 2 14 3 Guns 19 | . 2 14 3 Classes Destroyed 8 | 2 1 3 2 Worker 1 | . . 1 . Tunneler 2 | 2 . . . Recycler 1 | 1 . . . Swarmer 10 | . . 9 1 Grunt 6 | . 2 4 . Artisan 1 | . . . 1 Subdweller 2 | . . . 2 Assembled 1 | . . 1 . Best Kill Streak 6 | 2 2 6 1 Combat Bots Only 6 | . 2 6 1 Max Kills in Single Turn 2 | 1 1 2 1 Gunslinging 1 | . . 1 . Exploded . | . . . . Melee . | . . . . Uniques/NPCs Destroyed . | . . . . Combat | -11 -10 -10 -10 -------- Run | Yrd Mat Min Sub Hostile Shots Fired 129 | . 8 96 25 Missed 44 | . 1 33 10 Hits 85 | . 7 63 15 Melee 9 | . . 9 . Projectile 76 | . 7 54 15 Critical Strikes 1 | . . 1 . Damage Taken 1125 | . 76 845 204 Core 251 | . 34 172 45 Absorbed by Shields . | . . . . Core Remaining (%) 100 | 100 . . . Volleys Fired 79 | 4 9 43 23 Largest 3 | 2 2 2 3 Hottest 120 | 60 60 60 120 Shots Fired 162 | 8 17 86 51 Gun 157 | 8 17 86 46 Cannon . | . . . . Launcher . | . . . . Special 5 | . . . 5 Kinetic 98 | 4 9 43 42 Thermal 64 | 4 8 43 9 Explosive . | . . . . Electromagnetic . | . . . . Robot Hit Streak 13 | 6 4 9 13 Robot Miss Streak 5 | 1 2 5 4 Penetration Max . | . . . . Secondary Targets 4 | . . 3 1 Max Gunslinging Chain 1 | . . 1 1 Shots Hit Robots 89 | 6 10 49 24 Core Hits 41 | 4 5 22 10 Critical Kills . | . . . . Critical Parts Destroyed 1 | . . . 1 Critical Strikes 1 | . . . 1 Destroy 1 | . . . 1 Melee Attacks . | . . . . Impact . | . . . . Slashing . | . . . . Piercing . | . . . . Sneak Attacks . | . . . . Combat Hostiles . | . . . . Follow-up Attacks . | . . . . Damage Inflicted 1040 | 68 119 599 254 Guns 1040 | 68 119 599 254 Cannons . | . . . . Explosions . | . . . . Melee . | . . . . Ramming . | . . . . Kinetic 627 | 27 61 285 254 Thermal 413 | 41 58 314 . Explosive . | . . . . Electromagnetic . | . . . . Impact . | . . . . Slashing . | . . . . Piercing . | . . . . Highest Corruption . | . . . . Average Corruption . | . . . . Corruption Purged . | . . . . Corruption Blocked . | . . . . Overload Shots . | . . . . Overflow Damage . | . . . . Projectiles . | . . . . Explosions . | . . . . Melee . | . . . . Knockbacks . | . . . . Impact . | . . . . Kinetic . | . . . . Secondary . | . . . . Self-Inflicted Damage . | . . . . Shots . | . . . . Rammed . | . . . . Targets Rammed . | . . . . Kicked . | . . . . Crushed . | . . . . Highest Temperature 72 | . 42 72 . Average Temperature 27 | . 25 27 . Received Heat Transfer 246 | . 42 186 18 Siege Activations . | . . . . Martial Activations . | . . . . Shielding Activations . | . . . . Robots Disrupted . | . . . . Combat Hostiles . | . . . . Robots Corrupted . | . . . . Combat Hostiles . | . . . . Parts Fried . | . . . . Impact Corruptions . | . . . . Robots Melted . | . . . . Combat Hostiles . | . . . . Parts Melted 2 | . . 2 . Heat Transferred 925 | 100 125 700 . Parts Sabotaged . | . . . . Parts Stolen . | . . . . Parts Stripped . | . . . . Power Chain Reactions . | . . . . Alert | -11 -10 -10 -10 ------- Run | Yrd Mat Min Sub Maximum Alert Level . | . . . . Low Security (%) 100 | 100 100 100 . Level 1 . | . . . . Level 2 . | . . . . Level 3 . | . . . . Level 4 . | . . . . Level 5 . | . . . . High Security . | . . . . Max Security . | . . . . Peak Influence 180 | 10 40 180 . Initial . | . . . . Average 49 | . 12 90 . Influence Increases 489 | 15 64 360 50 Destroy 0b10 Robot/C 320 | . 40 260 20 Destroy 0b10 Robot/NC 20 | 15 . 5 . Destroy Leader 60 | . 10 50 . Successful Hack 14 | . 14 . . Lose Combat Pursuer 75 | . . 45 30 Influence Decreases 439 | 15 64 250 110 Entered New Map 58 | . . . 58 Time Decay 321 | 15 64 190 52 Lost Part 60 | . . 60 . Squads Dispatched 2 | . 2 . . Investigation 1 | . 1 . . Extermination . | . . . . Reinforcement 1 | . 1 . . Assault . | . . . . Garrison . | . . . . Intercept . | . . . . Searches Triggered . | . . . . Construction Impeded . | . . . . Haulers Reinforced . | . . . . Active Scanning Responses . | . . . . Cargo Convoy Interrupts . | . . . . Stealth | -11 -10 -10 -10 --------- Run | Yrd Mat Min Sub Distress Signals . | . . . . Communications Jammed . | . . . . Distress Signals . | . . . . Times Spotted 37 | . 5 24 8 Peak Tracking Total 7 | . 3 7 6 Tactical Retreats 4 | . . 3 1 Traps | -11 -10 -10 -10 ------- Run | Yrd Mat Min Sub Traps Triggered 2 | . 1 . 1 Indirectly . | . . . . Trap Hack Attempts . | . . . . Triggered . | . . . . Disarmed . | . . . . Reprogrammed . | . . . . Reused . | . . . . Traps Extracted . | . . . . Installed . | . . . . Triggered . | . . . . Machines | -11 -10 -10 -10 ---------- Run | Yrd Mat Min Sub Machines Disabled 1 | . . . 1 Max in Single Turn 1 | . . . 1 Machines Repaired . | . . . . Machines Dismantled . | . . . . Machines Sabotaged . | . . . . Overloaded Fab Kills . | . . . . Hacking | -11 -10 -10 -10 --------- Run | Yrd Mat Min Sub Machines Accessed 2 | . 1 . 1 Terminals 1 | . 1 . . Fabricators . | . . . . Repair Stations . | . . . . Recycling Units . | . . . . Scanalyzers . | . . . . Garrison Access . | . . . . Total Hacks 3 | . 2 . 1 Successful 2 | . 1 . 1 Failed 1 | . 1 . . Catastrophic . | . . . . Database Lockouts . | . . . . Manual . | . . . . Terminals 2 | . 2 . . Fabricators . | . . . . Repair Stations . | . . . . Recycling Units . | . . . . Scanalyzers . | . . . . Garrison Access . | . . . . Terminal Hacks 2 | . 1 . 1 Prototype ID Bank 1 | . 1 . . Proto ID Catalog 1 | . . . 1 Fabricator Hacks . | . . . . Repair Station Hacks . | . . . . Recycling Unit Hacks . | . . . . Scanalyzer . | . . . . Garrison Access Hacks . | . . . . Unauthorized Hacks . | . . . . Terminals . | . . . . Fabricators . | . . . . Repair Stations . | . . . . Recycling Units . | . . . . Scanalyzers . | . . . . Garrison Access . | . . . . Data Cores Recovered . | . . . . Used . | . . . . Hacking Detections 1 | . 1 . . Full Trace Events . | . . . . Feedback Events . | . . . . Feedback Blocked . | . . . . Robot Schematics Acquired . | . . . . Robots Built . | . . . . Authchips . | . . . . Time . | . . . . Total Robot Build Rating . | . . . . Part Schematics Acquired . | . . . . Parts Built . | . . . . Authchips . | . . . . Time . | . . . . Total Part Build Rating . | . . . . Parts Repaired . | . . . . Time . | . . . . Parts Recycled . | . . . . Recycled Matter . | . . . . Retrieved Matter . | . . . . Retrieved Components . | . . . . Parts Scanalyzed . | . . . . Part Schematics Acquired . | . . . . Parts Damaged . | . . . . Bothacking | -11 -10 -10 -10 ------------ Run | Yrd Mat Min Sub Used RIF Installer . | . . . . Robots Hacked . | . . . . Non-combat . | . . . . Combat . | . . . . Robot Hacks Applied . | . . . . Relay Couplers Released . | . . . . Fabnet Peak Effective % . | . . . . Robots Rewired . | . . . . Allies Hacked . | . . . . Hacks Repelled . | . . . . Allies | -11 -10 -10 -10 -------- Run | Yrd Mat Min Sub Total Allies . | . . . . Largest Group . | . . . . Highest-Rated Group . | . . . . Highest-Rated Ally . | . . . . Total Orders . | . . . . Ally Attacks . | . . . . Total Damage . | . . . . Kills . | . . . . Allies Corrupted . | . . . . Allies Melted . | . . . . Intel | -11 -10 -10 -10 ------- Run | Yrd Mat Min Sub Active Infowar (turns) 349 | 47 190 112 . Terrain 349 | 47 190 112 . Robot Analysis Total . | . . . . Derelict Logs Recovered 3 | . . 1 2 Drone Launches . | . . . . Drone Recoveries . | . . . . Exploration | -11 -10 -10 -10 ------------- Run | Yrd Mat Min Sub Turns Passed 1197 | 173 190 384 450 Spaces Moved 633 | 92 100 129 312 Core 3 | 3 . . . Treads 286 | 89 100 97 . Legs 17 | . . 17 . Wheels 327 | . . 15 312 Hover . | . . . . Flight . | . . . . Fastest Speed 50 | 50 160 115 100 Average Speed 135 | 156 160 167 107 Slowest Speed 260 | 160 160 260 115 Overloaded Moves . | . . . . Propulsion Burnouts . | . . . . Robots Hopped . | . . . . Potential Cave-ins . | . . . . Cave-ins Triggered . | . . . . Exploration Rate (%) 21 | 4 28 34 19 Regions Visited 3 Branch Regions 2 Pre-discovered Areas 1 | . . 1 . Known Exits Taken . | . . . . Unknown Exits Taken 3 | 1 1 1 . Scrap Searched 5 | . . . 5 Spaces Dug . | . . . . Terrain Destroyed . | . . . . Melee . | . . . . Projectile . | . . . . AOE . | . . . . Terrain Rammed . | . . . . Walls Destroyed . | . . . . Machines Disabled . | . . . . Actions | -11 -10 -10 -10 --------- Run | Yrd Mat Min Sub Total 808 | 109 114 210 375 Wait 49 | 1 . 27 21 Move 630 | 91 99 128 312 Hop . | . . . . Pick Up 22 | 5 4 7 6 Fast Attach 10 | 7 . . 3 Attach 7 | . . 5 2 Detach 1 | . . . 1 Swap 7 | 1 1 . 5 Drop 3 | . 1 . 2 Fire 79 | 4 9 43 23 Melee . | . . . . Ram . | . . . . Kick . | . . . . Crush . | . . . . Escape Stasis . | . . . . Rewire . | . . . . Trap . | . . . . Miscellaneous . | . . . . Route ------- -11/Scrapyard -10/Materials -10/Mines (discovered 2 exits: [*Mat] / *Sub) -10/Subcaves (discovered 2 exits: Mat / [*Rec]) History --------- Turn | Location | Event 4 | -11/Scrapyard | Discovered new exit (range 15) 174 | -11/Scrapyard | Entered Materials 318 | -10/Materials | Discovered new exit (range 16) 321 | -10/Materials | Build established: Mutant 364 | -10/Materials | Entered Mines 444 | -10/Mines | Discovered new exit (range 5) 589 | -10/Mines | Assembled infested the area 677 | -10/Mines | Learned location of Zion (-7) 724 | -10/Mines | Core integrity fell below 50% 729 | -10/Mines | Core integrity fell below 20% 745 | -10/Mines | Discovered new exit (range 4) 748 | -10/Mines | Entered Subcaves 752 | -10/Subcaves | Identified exit to Materials 790 | -10/Subcaves | Learned Materials stockpile data 834 | -10/Subcaves | Visited 4L-MR0's lab 848 | -10/Subcaves | Found Rainbow Chip 849 | -10/Subcaves | Attached Rainbow Chip, gained temporary slots: Power, Propulsion, Utility, Weapon 938 | -10/Subcaves | Disturbed a concealed Subdweller 1185 | -10/Subcaves | Discovered new exit (range 14) 1198 | -10/Subcaves | Destroyed by S-10 Pest with Light Assault Rifle Last Messages --------------- 01065_ Dropped Sml. Laser. 01066_ Dropped Assault Rifle. 01067_ Acquired Barrage Gun. 01070_ Acquired 10 matter. 01073_ Subatomizers dissect the Sub. Monowheel. 01075_ Triggered Piercing Trap. 01075_ Spikes shoot up from the floor. 01075_ Critical hit (Impale). 01078_ Acquired 10 matter. 01083_ Subatomizers dissect the Sub. Monowheel. 01086_ Acquired Sub. Monowheel. 01094_ Subatomizers dissect the Sub. Monowheel. 01146_ Destroyed Multitool. 01146_ GS-JNG(u) cries out in pain. 01146_ GS-JNG(u) destroyed. 01185_ EXIT=FOUND 01190_ S-10 Pest destroyed. 01190_ Switching to secondary target: S-10 Pest. 01195_ S-10 Pest suffers critical hit (Destroy). 01195_ Destroyed Flight Unit. Map ----- +----------------------------------------------------+ | ?????????????????????????????????????????????????? | | ?????????????????????????????????????????????????? | | ?????????????????????????????????????????????????? | | ?????????????????????????????????????????????????? | | ?????????????????????????????????????????????????? | | ?????????????????????????????????????????????????? | | ?????????????????????????????????????????????????? | | ?????????????????????????????????????????????????? | | ?????????????????????????????????????????????????? | | ?????????????????????????????????????????????????? | | ????????????????????????? ???????????????????????? | | ???????????????????####?? ??????????????????????? | | ??????????????????## ?# ??????????????????????? | | ??????????????????# ## ??????????????????????? | | ??????????????????? ??????????????????????? | | ???????????????????? ??????????????????????? | | ????????????????????? ??????????????????????? | | ?????????????????????? #??????????"""?????????? | | ??????????????????????? #?###???? "?????????? | | ???????????????????????# ## #### "?????????? | | ???????????????????????# ""##???????? | | ???????????????????????# <#???????? | | ???????????????????????# s ""?????????? | | ???????????????????##### s #???????????????? | | ???????????????????# =s#######???????????????? | | ?????????????????### @##?????????????????????? | | ????????????????## ## #??????????????????????? | | ??????########??# ## #??????????????????????? | | ????### # #???# ##??????????????????????? | | ???## ##???# ##???????????????????????? | | ???# # ##?### " ##????????????????????????? | | ???# ## ### ###?????????????????????????? | | ???## ### #???????????????????????????? | | #??# ##?## #???????????????????????????? | | ##?# #??# ##???????????????????????????? | | #?## #??# #????????????????????????????? | | #?# ##??## #????????????????????????????? | | #??## ##???# ## ###????????????????????????????? | | #### ###?#######??????????????????????????????? | | ## #??????????????????????????????????????? | | #??????????????????????????????????????? | | #??????????????????????????????????????? | | ## #??????????????????????????????????????? | | ## ##??????????????????????????????????????? | | ## #???????????????????????????????????????? | | ## ##???????????????????????????????????????? | | ## %=#????????????????????????????????????????? | | ## = #????????????????????????????????????????? | | #### ???????????????????????????????????????? | | ??# ??????????????????????????????????????? | +----------------------------------------------------+ Best States ------------- Heat Dissipation 25 Energy Generation 10 Energy Capacity 250 Matter Stores 300 Matter Capacity 300 Sight Range 16 Terrain Scan Range 16 Terrain Scan Density 10 Armor Coverage 150 Evasion (%) 40 Recoil Reduction 2 Item Schematics ----------------- None Robot Schematics ------------------ None Fabricated ------------ Nothing Repaired ---------- Nothing Alien Tech Used ----------------- None Achievements -------------- None Challenges ------------ None Game ------ Seed SignalConceptNullifier Manual? 0 Play Time 00:13:24 Cumulative 150.6 hours Start 2025.05.09 @ 00:49:49 End 2025.05.09 @ 13:24:48 Sessions 1 Manual Loads 0 Difficulty Rogue Special Mode None Game No. 86 Rogue 78 Adventurer 8 Explorer 0 Win Type - Total 2 Types 2/0/0/0/0/0/0/0/0/0 Lore% 65 Gallery% 64 Achievement% 55 Wizard Run 0 Options --------- Layout 2 ASCII 0 Keyboard 1 Movement Numpad Keybinds 1 Fullscreen 1 Font 48/Smallcaps Map View 50x44 Zoom Use 0% Tactical HUD 1 Map Filters NONE Filters NONE Steam 1 RUN: aa6f3070-1ee5-4b87-b451-d306326d98e6